lending/lending_fUSD_20240411
["ID","MTS","AMOUNT","RATE_DAILY","PERIOD"]
[322117214,1712805038607,-8981.17043291,0.0001976,2]
[322117215,1712805038619,-6917.79,0.00019918,2]
[322117216,1712805038630,-542.29,0.00019974,2]
[322117217,1712805038641,-1223.86130035,0.0002,2]
[322117218,1712805038656,-1083.60301757,0.0002,2]
[322117219,1712805038666,-1772.04078153,0.0002,2]
[322117220,1712805038676,-204.18,0.00020099,2]
[322117221,1712805038685,-153.990262,0.00020274,2]
[322117222,1712805038694,-1000.0,0.00020409,2]
[322117223,1712805038703,-150.0,0.00020747,2]
[322117224,1712805038714,-159.15262663,0.0002079,2]
[322117225,1712805038724,-649.32042,0.0002079,2]
[322117227,1712805038734,-200.0,0.00020832,2]
[322117229,1712805038743,-1000.0,0.00020832,2]
[322117230,1712805038752,-500.0,0.00020832,2]
[322117232,1712805038762,-9436.78692921,0.000209,2]
[322117233,1712805038771,-158.92770214,0.000209,2]
[322117234,1712805038780,-1098.0464,0.000209,2]
[322117235,1712805038790,-5056.11632259,0.000209,2]
[322117236,1712805038800,-674.9871,0.000209,2]
[322117237,1712805038810,-150.48469749,0.000209,2]
[322117238,1712805038819,-7120.08557892,0.000209,2]
[322117239,1712805038829,-468.11753208,0.000209,2]
[322117240,1712805038840,-317.36023219,0.000209,2]
[322117241,1712805038850,-157.041111,0.00020996,4]
[322117242,1712805038860,-157.041111,0.00020997,4]
[322117243,1712805038869,-157.041111,0.00020997,4]
[322117244,1712805038880,-157.041111,0.00020997,4]
[322117245,1712805038890,-157.041111,0.00020997,4]
[322117246,1712805038901,-157.041111,0.00020997,4]
[322117247,1712805038910,-216.9674078,0.00020998,2]
[322117248,1712805038919,-2307.7070106,0.00020998,2]
[322117249,1712805038929,-368.47878206,0.00020998,2]
[322117251,1712805038941,-157.041111,0.00020998,4]
[322117253,1712805038951,-157.041111,0.00020998,4]
[322117255,1712805038960,-157.041111,0.00020998,4]
[322117257,1712805038969,-157.041111,0.00020998,4]
[322117258,1712805038979,-157.041111,0.00020998,4]
[322117259,1712805038988,-281.11958425,0.00020998,2]
[322117260,1712805038998,-5565.87832095,0.00020999,2]
[322117261,1712805039008,-173.41112754,0.00020999,2]
[322117262,1712805039017,-157.041111,0.00020999,4]
[322117263,1712805039027,-157.041111,0.00020999,4]
[322117264,1712805039038,-157.041111,0.00020999,4]
[322117265,1712805039047,-157.041111,0.00020999,4]
[322117266,1712805039056,-55431.22059353,0.00021,2]
[322117267,1712805039070,-544.17950354,0.00021,2]
[322117268,1712805039102,-13777.63470534,0.00021,2]
[322117269,1712805039113,-47047.83948165,0.00021,2]
[322117270,1712805039212,-275.96458678,0.000209,2]
[322117271,1712805040579,-1790.93043654,0.000209,2]
[322117272,1712805040589,-1671.0238279,0.00021,2]
[322117273,1712805040604,-291.72,0.00021,2]
[322117274,1712805041313,-159.15262664,0.0002079,2]
[322117275,1712805041324,-1265.24793159,0.00021,2]
[322117276,1712805041368,-2194.28401246,0.00021,2]
[322117277,1712805041380,-4873.71947889,0.00021,2]
[322117280,1712805043446,-23941.29068662,0.00021,2]
[322117281,1712805043457,-482.95182015,0.00021,2]
[322117282,1712805043469,-373.95940464,0.00021,2]
[322117283,1712805043554,-936.50414268,0.00021,2]
[322117294,1712805046579,-302.41000598,0.00021,2]
[322117297,1712805273620,542.43,0.00018354,2]
[322117298,1712805339448,193.8,0.00016128,2]
[322117303,1712805770965,555.77,0.00018102,2]
[322117452,1712806231719,-446.20772122,0.00020031,2]
[322117453,1712806231733,-412.20835437,0.00020031,2]
[322117454,1712806231743,-237.45,0.00020047,2]
[322117455,1712806231752,-420.05070224,0.00020047,2]
[322117456,1712806231765,-199.79929776,0.00020047,2]
[322117457,1712806231774,-174.55,0.00020056,2]
[322117458,1712806231784,-486.64570224,0.00020092,2]
[322117459,1712806231795,-240.74429776,0.00020092,2]
[322117460,1712806231804,-162.38,0.00020155,2]
[322117461,1712806231814,-162.48377871,0.00020366,2]
[322117462,1712806231826,-393.28622129,0.00020366,2]
[322117463,1712806231835,-162.38,0.0002068,2]
[322117464,1712806231845,-2230.554267,0.0002083,2]
[322117465,1712806231872,-623.17277901,0.0002083,2]
[322117466,1712806231892,-4074.82806597,0.0002083,2]
[322117467,1712806232073,-200.0,0.00020831,2]
[322117468,1712806232083,-720.33,0.00020831,2]
[322117469,1712806232094,-1000.0,0.00020832,2]
[322117470,1712806232104,-200.0,0.00020832,2]
[322117471,1712806232113,-500.0,0.00020832,2]
[322117472,1712806232127,-544.09,0.00020832,2]
[322117473,1712806232137,-2500.0,0.00020877,2]
[322117474,1712806232146,-7537.56383976,0.00020877,2]
[322117475,1712806232156,-7809.73568953,0.0002089,2]
[322117476,1712806232166,-155.0,0.00020898,2]
[322117477,1712806232175,-1246.37562882,0.00020898,2]
[322117478,1712806232185,-379.92103803,0.00020898,2]
[322117479,1712806232195,-2016.855565,0.000209,2]
[322117480,1712806232205,-37508.9816,0.000209,2]
[322117481,1712806232215,-1249.0848,0.000209,2]
[322117482,1712806232225,-1592.513,0.000209,2]
[322117483,1712806232234,-8767.25967607,0.000209,2]
[322117484,1712806232244,-150.48469749,0.000209,2]
[322117485,1712806232253,-10919.3133,0.000209,2]
[322117486,1712806232263,-14521.10734319,0.000209,2]
[322117487,1712806232285,-1854.93193671,0.000209,2]
[322117488,1712806232296,-5216.57560135,0.000209,2]
[322117562,1712806238623,-484.59,0.00020021,2]
[322117564,1712806238633,-27305.25702516,0.000209,2]
[322117567,1712806238644,-11305.93269359,0.000209,2]
[322117569,1712806238653,-309.9888914,0.000209,2]
[322117571,1712806238662,-317.36023216,0.000209,2]
[322117573,1712806238671,-1377.93001554,0.000209,2]
[322117574,1712806238681,-312.07835472,0.000209,2]
[322117577,1712806238690,-658.05681709,0.000209,2]
[322117579,1712806238699,-200.0,0.0002093,2]
[322117581,1712806238708,-1000.0,0.00020947,2]
[322117583,1712806238717,-12477.60492466,0.00020977,4]
[322117585,1712806238726,-22516.29847745,0.00020977,2]
[322117587,1712806238738,-835.82663998,0.00020977,2]
[322117589,1712806238749,-539.00383144,0.00020977,2]
[322117680,1712806239868,-405.73611984,0.00020977,2]
[322117681,1712806242734,-4323.67141818,0.00020977,2]
[322117682,1712806242843,-645.4,0.00020977,2]
[322117683,1712806243063,-1202.39261956,0.00020977,2]
[322117684,1712806243165,-4701.46589355,0.00020977,2]
[322117685,1712806243180,-157.041112,0.00020997,4]
[322117686,1712806243195,-157.041112,0.00020997,4]
[322117687,1712806243211,-157.041112,0.00020997,4]
[322117688,1712806243226,-157.041112,0.00020997,4]
[322117689,1712806243245,-157.041112,0.00020997,4]
[322117690,1712806243261,-157.041112,0.00020997,4]
[322117692,1712806243277,-6209.85493494,0.00020998,2]
[322117694,1712806243294,-157.041112,0.00020998,4]
[322117695,1712806243311,-157.041112,0.00020998,4]
[322117696,1712806243327,-157.041112,0.00020998,4]
[322117697,1712806243342,-157.041112,0.00020998,4]
[322117698,1712806243359,-157.041112,0.00020998,4]
[322117699,1712806243374,-157.041112,0.00020998,4]
[322117700,1712806243391,-173.41112754,0.00020999,2]
[322117701,1712806243407,-157.041112,0.00020999,4]
[322117702,1712806243424,-157.041112,0.00020999,4]
[322117703,1712806243440,-157.041112,0.00020999,4]
[322117704,1712806243456,-157.041112,0.00020999,4]
[322117705,1712806243473,-157.041112,0.00020999,4]
[322117706,1712806243491,-157.041112,0.00020999,4]
[322117707,1712806243509,-463.52802797,0.00020999,2]
[322117708,1712806243532,-45.58399242,0.00020999,2]
[322117709,1712806243548,-500.0,0.00020999,2]
[322117710,1712806243564,-500.0,0.00020999,2]
[322117711,1712806243581,-217.26440031,0.00020999,2]
[322117712,1712806243598,-500.0,0.00020999,2]
[322117713,1712806243614,-2311.52901398,0.00021,2]
[322117714,1712806243639,-1583.88345957,0.00021,2]
[322117716,1712806245857,-43874.00140186,0.00021,2]
[322117720,1712806436794,527.7,0.00018605,2]
[322117721,1712806953877,501.31,0.00018331,2]
[322117802,1712807419031,476.24,0.00018261,2]
[322117811,1712807431864,-767.17232139,0.00020114,2]
[322117812,1712807431921,-91.2437542,0.00020114,2]
[322117813,1712807431930,-322.38,0.00020115,2]
[322117814,1712807431939,-237.45,0.00020152,2]
[322117815,1712807431948,-487.12072145,0.00020248,2]
[322117816,1712807431958,-162.38,0.00020256,2]
[322117817,1712807431967,-476.24,0.00020525,2]
[322117818,1712807431976,-3625.116,0.00020746,2]
[322117819,1712807431985,-1343.54918271,0.00020776,2]
[322117820,1712807431995,-150.020625,0.00020822,2]
[322117821,1712807432004,-150.0,0.00020825,2]
[322117822,1712807432014,-3639.976,0.00020826,2]
[322117823,1712807432024,-200.0,0.00020831,2]
[322117824,1712807432034,-1000.0,0.00020832,2]
[322117825,1712807432043,-500.0,0.00020832,2]
[322117826,1712807432052,-200.0,0.00020832,2]
[322117827,1712807432062,-200.0,0.00020832,2]
[322117828,1712807432071,-500.0,0.00020895,2]
[322117829,1712807432080,-500.0,0.00020895,2]
[322117830,1712807432090,-500.0,0.00020895,2]
[322117831,1712807432098,-500.0,0.00020895,2]
[322117832,1712807432107,-320.56871664,0.00020895,2]
[322117833,1712807432149,-236.81028336,0.00020895,2]
[322117834,1712807432158,-1000.0,0.00020895,2]
[322117835,1712807432167,-696.6329519,0.00020895,2]
[322117840,1712807438592,-303.3670481,0.00020895,2]
[322117841,1712807438601,-1000.0,0.00020895,2]
[322117842,1712807438610,-1000.0,0.00020895,2]
[322117843,1712807438620,-1000.0,0.00020895,2]
[322117844,1712807438629,-1000.0,0.00020895,2]
[322117845,1712807438641,-1000.0,0.00020895,2]
[322117846,1712807438650,-1000.0,0.00020895,2]
[322117847,1712807438659,-1000.0,0.00020895,2]
[322117848,1712807438668,-1000.0,0.00020895,2]
[322117849,1712807438677,-1000.0,0.00020895,2]
[322117850,1712807438687,-1000.0,0.00020895,2]
[322117851,1712807438696,-1000.0,0.00020895,2]
[322117852,1712807438708,-1000.0,0.00020895,2]
[322117853,1712807438731,-1000.0,0.00020895,2]
[322117854,1712807438748,-944.9371,0.00020895,2]
[322117855,1712807438766,-1702.86273673,0.000209,2]
[322117856,1712807438789,-6333.79196638,0.000209,2]
[322117857,1712807438806,-2522.08432039,0.000209,2]
[322117858,1712807438827,-437.70943335,0.000209,2]
[322117951,1712807440682,-1805.2443034,0.000209,2]
[322117954,1712807440709,-351.54270989,0.000209,2]
[322117956,1712807440721,-825.50953987,0.000209,2]
[322117959,1712807440738,-1556.8091931,0.000209,2]
[322117961,1712807440749,-85.70774174,0.000209,2]
[322117963,1712807440761,-64.77695575,0.000209,2]
[322117965,1712807440771,-6235.6996008,0.000209,2]
[322117967,1712807440780,-6783.80745582,0.000209,2]
[322117969,1712807440789,-317.36023216,0.000209,2]
[322117971,1712807440799,-208.05223648,0.000209,2]
[322117973,1712807440808,-918.62001036,0.000209,2]
[322117975,1712807440817,-167.18,0.00020985,2]
[322117977,1712807440827,-216.08179167,0.00020998,2]
[322117979,1712807440837,-299.8324,0.00020999,2]
[322117981,1712807440846,-143782.31133924,0.00021,2]
[322117983,1712807440857,-826.05471969,0.00021,2]
[322117986,1712807440878,-1052.36299424,0.00021,2]
[322117989,1712807440896,-741.5042882,0.00021,2]
[322117991,1712807440907,-3371.76921599,0.00021,2]
[322117995,1712807440931,-2126.99991418,0.00021,2]
[322117996,1712807440942,-870.05713224,0.00021,2]
[322117997,1712807440967,-492.61339342,0.00021,2]
[322117998,1712807442879,-2196.43366968,0.00021,2]
[322117999,1712807443149,-4052.65503142,0.00021,2]
[322118000,1712807446037,-5894.7877,0.00021,2]
[322118001,1712807446159,-2104.83259425,0.00021,2]
[322118002,1712807476265,169.47228987,0.00032766,30]
[322118003,1712807628086,25320.38070522,0.0003,31]
[322118004,1712807895435,482.3,0.00018709,2]
[322118005,1712807979008,867.16511871,0.00018709,2]
[322118006,1712807987663,42509.60567511,0.00018709,2]
[322118007,1712807995040,1469.20927421,0.00018709,2]
[322118008,1712807997891,19697.42067361,0.00018709,2]
[322118009,1712808007028,864.68528721,0.00018709,2]
[322118010,1712808007592,27845.58085765,0.00018709,2]
[322118011,1712808014529,1469.20927421,0.00018709,2]
[322118012,1712808021658,17670.34987003,0.00018709,2]
[322118013,1712808023203,998.34835911,0.00018709,2]
[322118014,1712808029148,20137.1454484,0.00018709,2]
[322118015,1712808030527,831.66990177,0.00018709,2]
[322118016,1712808031337,156.28178987,0.00018898,2]
[322118017,1712808044776,20137.1454484,0.00018709,2]
[322118018,1712808064778,20137.1454484,0.00018709,2]
[322118019,1712808082787,4311.39699424,0.00018709,2]
[322118020,1712808116799,20130.85716187,0.00018709,2]
[322118021,1712808138786,15334.16250809,0.00018709,2]
[322118024,1712808332305,422.67959947,0.000188,2]
[322118025,1712808354124,497.6,0.00018438,2]
[322118026,1712808432648,171.59,0.00016264,2]
[322118194,1712808581199,1088.0,0.000209,5]
[322118219,1712808632949,-150.7693147,0.000199,2]
[322118221,1712808632960,-289.67693628,0.0002,2]
[322118223,1712808632971,-846.55704719,0.0002,2]
[322118225,1712808632982,-512.99670183,0.0002,2]
[322118229,1712808633019,-345.41937376,0.0002,2]
[322118231,1712808633030,-316.36,0.00020285,2]
[322118233,1712808633039,-149.93576476,0.00020432,2]
[322118235,1712808633062,-62.67340686,0.00020432,2]
[322118236,1712808633071,-1000.0,0.00020548,2]
[322118237,1712808633081,-192.78967901,0.00020702,2]
[322118238,1712808633094,-304.81032099,0.00020702,2]
[322118239,1712808633104,-543.79024107,0.0002076,2]
[322118265,1712808638570,-1004.97991686,0.0002076,2]
[322118268,1712808638587,-487.87697031,0.0002076,2]
[322118272,1712808638608,-1633.98321715,0.0002076,2]
[322118275,1712808638626,-46.32465461,0.0002076,2]
[322118278,1712808638646,-200.0,0.00020832,2]
[322118280,1712808638661,-567.9747598,0.00020832,2]
[322118283,1712808638680,-432.0252402,0.00020832,2]
[322118286,1712808638695,-297.3285,0.000209,2]
[322118289,1712808638710,-7250.6744298,0.000209,2]
[322118291,1712808638730,-389.95481688,0.000209,2]
[322118294,1712808638745,-6138.67238843,0.000209,2]
[322118297,1712808638759,-150.48469749,0.000209,2]
[322118299,1712808638774,-942.581,0.000209,2]
[322118302,1712808638788,-6034.86738038,0.000209,2]
[322118304,1712808638805,-317.36023216,0.000209,2]
[322118307,1712808638820,-877.26223,0.0002092,2]
[322118310,1712808638835,-3599.941,0.00020982,2]
[322118313,1712808638851,-1401.09,0.00020982,2]
[322118315,1712808638866,-505.26325024,0.00020998,2]
[322118318,1712808638882,-2354.77756212,0.00020998,2]
[322118321,1712808638897,-216.08179167,0.00020998,2]
[322118323,1712808638912,-525.35711828,0.00020999,2]
[322118326,1712808638926,-714.96210186,0.00021,2]
[322118328,1712808638941,-327.58720426,0.00021,2]
[322118330,1712808638956,-93437.79573965,0.00021,2]
[322118333,1712808638974,-1445.91970524,0.00021,2]
[322118336,1712808638993,-32088.52347488,0.00021,2]
[322118339,1712808639011,-7506.40403931,0.00021,2]
[322118342,1712808639029,-231447.36821434,0.00021,2]
[322118345,1712808639047,-817.56756893,0.00021,2]
[322118348,1712808639065,-757.14714675,0.00021,2]
[322118351,1712808639083,-4146.45277639,0.00021,2]
[322118354,1712808639103,-813.77905037,0.00021,2]
[322118357,1712808639122,-674.8638484,0.00021,2]
[322118360,1712808639139,-456.79685269,0.00021,2]
[322118363,1712808639158,-96579.36363014,0.00021,2]
[322118366,1712808639176,-905.68058335,0.00021,2]
[322118369,1712808639195,-718.94041992,0.00021,2]
[322118372,1712808639216,-2369.37968087,0.00021,2]
[322118485,1712808640096,-966.26722024,0.00021,2]
[322118488,1712808640108,-355.72425126,0.00021,2]
[322118493,1712808640123,-740.52033185,0.00021,2]
[322118496,1712808640136,-674.79569803,0.00021,2]
[322118503,1712808640165,-515.1,0.00021,2]
[322118510,1712808640222,-794.97564357,0.00021,2]
[322118512,1712808640233,-763.57405509,0.00021,2]
[322118518,1712808640277,-6387.58171274,0.00021,2]
[322118524,1712808640332,-490.18022914,0.00021,2]
[322118525,1712808640344,-778.48118376,0.00021,2]
[322118526,1712808640389,-805.10598125,0.00021,2]
[322118528,1712808640400,-1311.22429823,0.00021,2]
[322118531,1712808643512,-833.63047961,0.00021,2]
[322118532,1712808643562,-35534.75425543,0.00021,2]
[322118533,1712808643592,-17284.24375285,0.00021,2]
[322118538,1712808643948,-847.46041917,0.00021,2]
[322118539,1712808643961,-1085.06259888,0.00021,2]
[322118540,1712808643975,-804.8204929,0.00021,2]
[322118541,1712808643986,-1199.96576911,0.00021,2]
[322118542,1712808643999,-3720.0,0.00021,2]
[322118545,1712808644012,-9244.26726016,0.00021,2]
[322118558,1712808644126,-824.62453471,0.00021,2]
[322118560,1712808644138,-819.63093706,0.00021,2]
[322118756,1712808646037,-858.41607559,0.00020999,2]
[322118758,1712808646047,-26972.71976372,0.00021,2]
[322118764,1712808646092,-11159.2477468,0.00021,2]
[322118827,1712808646666,-822.80501903,0.00021,2]
[322118831,1712808646696,-566.35189335,0.00021,2]
[322118834,1712808646709,-819.85899095,0.00021,2]
[322119616,1712808668445,1000.0,0.0002095,5]
[322119617,1712808773179,49527.44266463,0.00032763,30]
[322119618,1712808787526,-155.0,0.00019943,2]
[322119619,1712808787547,-155.0,0.00019944,2]
[322119620,1712808787567,-426.37205318,0.00019945,2]
[322119621,1712808787588,-1339.86365918,0.00019948,2]
[322119622,1712808787608,-1219.45985225,0.0002,2]
[322119623,1712808826010,150.0,0.00019951,2]
[322119624,1712808826032,150.0,0.00019951,2]
[322119625,1712808826053,150.0,0.00019951,2]
[322119626,1712808826072,50.0,0.00019951,2]
[322119627,1712808961876,522.72,0.00017919,2]
[322119628,1712808991279,150.0,0.00015857,2]
[322119629,1712808991299,9.1,0.00015857,2]
[322119630,1712809031013,150.0,0.00015857,2]
[322119631,1712809031033,150.0,0.00015857,2]
[322119632,1712809031054,23.37069927,0.00015857,2]
[322119633,1712809034615,150.0,0.00015857,2]
[322119634,1712809034636,150.0,0.00015857,2]
[322119635,1712809034659,150.0,0.00015857,2]
[322119636,1712809034681,150.0,0.00015857,2]
[322119637,1712809034704,150.0,0.00015857,2]
[322119638,1712809034727,150.0,0.00015857,2]
[322119639,1712809034750,134.65639759,0.00015857,2]
[322119640,1712809034962,15.34360241,0.00015857,2]
[322119641,1712809034985,150.0,0.00015857,2]
[322119642,1712809035009,150.0,0.00015857,2]
[322119643,1712809035030,150.0,0.00015857,2]
[322119644,1712809035052,150.0,0.00015857,2]
[322119645,1712809035075,150.0,0.00015857,2]
[322119646,1712809035096,150.0,0.00015857,2]
[322119647,1712809035117,150.0,0.00015857,2]
[322119648,1712809035138,150.0,0.00015857,2]
[322119649,1712809035158,150.0,0.00015857,2]
[322119650,1712809035178,150.0,0.00015857,2]
[322119651,1712809035198,150.0,0.00015857,2]
[322119652,1712809035222,150.0,0.00015857,2]
[322119653,1712809035243,150.0,0.00015857,2]
[322119654,1712809035264,150.0,0.00015857,2]
[322119655,1712809035284,150.0,0.00015857,2]
[322119656,1712809035305,150.0,0.00015857,2]
[322119657,1712809035327,150.0,0.00015857,2]
[322119658,1712809035348,150.0,0.00015857,2]
[322119659,1712809035369,150.0,0.00015857,2]
[322119660,1712809035390,150.0,0.00015857,2]
[322119661,1712809035411,150.0,0.00015857,2]
[322119662,1712809035598,150.0,0.00015857,2]
[322119663,1712809035620,150.05275762,0.00015857,2]
[322119664,1712809035640,14477.28,0.00015857,2]
[322119665,1712809035666,2194.46908837,0.00015857,2]
[322119666,1712809047013,150.0,0.00015857,2]
[322119667,1712809047037,150.0,0.00015857,2]
[322119668,1712809047058,25.85452371,0.00015857,2]
[322119669,1712809050877,250.77477702,0.00015857,2]
[322119670,1712809050906,7115.88765009,0.00015857,2]
[322119671,1712809056641,1034.65639759,0.00015857,2]
[322119672,1712809074606,905.42390074,0.00015857,2]
[322119676,1712809462292,496.58,0.0001781,2]
[322119677,1712809523407,159.164136,0.00018904,2]
[322119798,1712809838647,-155.0,0.00019074,2]
[322119800,1712809838657,-155.0,0.00019075,2]
[322119802,1712809838667,-183.76246893,0.00019078,2]
[322119804,1712809838676,-23.97753107,0.00019526,2]
[322119806,1712809838688,-898.23246893,0.00019526,2]
[322119808,1712809838697,-210.23,0.00019576,2]
[322119810,1712809838706,-889.73742107,0.00019655,2]
[322119899,1712809839546,-150.0,0.00019655,2]
[322119913,1712809840430,-150.0,0.00019655,2]
[322119914,1712809840443,-922.9298696,0.00019655,2]
[322119916,1712809841153,-150.0,0.00019655,2]
[322119919,1712809843266,-7140.11250145,0.00019655,2]
[322119920,1712809843377,-10450.1078,0.00019655,2]
[322119921,1712809843540,-2122.92,0.00019655,2]
[322120241,1712809846545,-230.55406852,0.00019655,2]
[322120244,1712809846558,-273.221,0.00019655,2]
[322120249,1712809846583,-928.42733936,0.00019655,2]
[322120251,1712809846592,-200.0,0.00019668,2]
[322120253,1712809846601,-2248.19,0.0001968,2]
[322120255,1712809846612,-1735.05,0.00019706,2]
[322120257,1712809846621,-3445.75,0.00019787,2]
[322120259,1712809846630,-1000.0,0.00019808,2]
[322120261,1712809846639,-158.69,0.00019816,2]
[322120263,1712809846648,-154.46,0.00019822,2]
[322120265,1712809846657,-858.41607559,0.0002007,2]
[322120267,1712809846666,-168.86,0.00020071,2]
[322120269,1712809846675,-496.58,0.00020074,2]
[322120271,1712809846684,-170.96,0.00020388,2]
[322120273,1712809846693,-150.0,0.000205,2]
[322120275,1712809846702,-744.0,0.00020547,2]
[322120277,1712809846711,-519.07030047,0.000206,2]
[322120279,1712809846719,-1176.33880269,0.00020642,2]
[322120281,1712809846729,-150.0,0.00020666,2]
[322120283,1712809846739,-152.96337255,0.0002079,2]
[322120285,1712809846748,-201.39541112,0.00020799,2]
[322120287,1712809846759,-5848.77645819,0.00020799,2]
[322120289,1712809846768,-10739.93439476,0.00020799,2]
[322120291,1712809846778,-163.37560946,0.00020799,2]
[322120293,1712809846788,-5960.36813969,0.00020799,2]
[322120295,1712809846797,-317.18080639,0.00020799,2]
[322120297,1712809846805,-163.37560946,0.00020819,2]
[322120299,1712809846815,-200.0,0.00020832,2]
[322120301,1712809846824,-1000.0,0.00020832,2]
[322120303,1712809846834,-500.0,0.00020832,2]
[322120305,1712809846843,-163.37560946,0.00020839,2]
[322120307,1712809846852,-163.37560946,0.0002086,2]
[322120309,1712809846862,-163.37560946,0.0002088,2]
[322120311,1712809846870,-329.2006434,0.00020887,2]
[322120313,1712809846879,-157.041113,0.00020895,4]
[322120315,1712809846888,-157.041113,0.00020895,4]
[322120317,1712809846897,-157.041113,0.00020895,4]
[322120319,1712809846906,-157.041113,0.00020896,4]
[322120321,1712809846915,-157.041113,0.00020896,4]
[322120323,1712809846924,-157.041113,0.00020896,4]
[322120325,1712809846934,-157.041113,0.00020896,4]
[322120327,1712809846942,-157.041113,0.00020896,4]
[322120329,1712809846951,-173.68444432,0.00020897,2]
[322120331,1712809846960,-157.041113,0.00020897,4]
[322120333,1712809846969,-157.041113,0.00020897,4]
[322120335,1712809846978,-157.041113,0.00020897,4]
[322120337,1712809846988,-157.041113,0.00020897,4]
[322120339,1712809846997,-157.041113,0.00020897,4]
[322120341,1712809847006,-327.89221599,0.00020898,2]
[322120343,1712809847016,-157.041113,0.00020898,4]
[322120345,1712809847025,-157.041113,0.00020898,4]
[322120347,1712809847034,-157.041113,0.00020898,4]
[322120349,1712809847043,-157.041113,0.00020898,4]
[322120351,1712809847052,-157.041113,0.00020898,4]
[322120353,1712809847061,-87319.91314887,0.00020899,2]
[322120355,1712809847070,-512113.05447895,0.00020899,2]
[322120438,1712809847905,-7500.0,0.00020799,2]
[322120440,1712809847914,-3488.54894645,0.00020899,2]
[322120443,1712809847927,-688.41524091,0.00020899,2]
[322120446,1712809847952,-554.18566314,0.00020899,2]
[322120449,1712809847964,-508.5,0.00020899,2]
[322120451,1712809847975,-323.37009638,0.00020899,2]
[322120453,1712809847988,-11887.59717412,0.00020899,2]
[322120455,1712809847999,-10227.76107379,0.00020899,2]
[322120456,1712809848010,-23286.82891403,0.00020899,2]
[322120684,1712809857077,819.87431602,0.00018807,2]
[322120685,1712809981084,150.0,0.00018807,2]
[322120686,1712809981106,150.0,0.00018807,2]
[322120687,1712809981126,150.0,0.00018807,2]
[322120688,1712809981146,150.0,0.00018807,2]
[322120689,1712809981169,150.0,0.00018807,2]
[322120690,1712809981190,150.0,0.00018807,2]
[322120691,1712809981212,150.0,0.00018807,2]
[322120692,1712809981236,150.0,0.00018807,2]
[322120693,1712809981258,150.0,0.00018807,2]
[322120694,1712809981279,150.0,0.00018807,2]
[322120695,1712809981300,182.23724238,0.00018807,2]
[322120696,1712809981320,17167.01567442,0.00018807,2]
[322120697,1712809992927,150.0,0.00018807,2]
[322120698,1712809992949,150.0,0.00018807,2]
[322120699,1712809992969,34.18188157,0.00018807,2]
[322120700,1712809993305,200.0,0.00018657,2]
[322120701,1712809997648,1000.0,0.00018657,2]
[322120702,1712810009452,500.0,0.00018657,2]
[322120703,1712810019179,300.0,0.00018976,2]
[322120704,1712810031838,531.23,0.00018033,2]
[322120705,1712810331672,155.6142044,0.00018807,2]
[322120706,1712810332926,1469.20927421,0.00018033,2]
[322120707,1712810333733,816.38999672,0.00018807,2]
[322120708,1712810333842,864.94891569,0.00018033,2]
[322120709,1712810339986,155.0,0.00018807,2]
[322120710,1712810342613,360.64469906,0.00018033,2]
[322120711,1712810343589,546.12627999,0.00018033,2]
[322120712,1712810344746,1034.65639759,0.00018033,2]
[322120713,1712810346109,365.17506551,0.00018033,2]
[322120714,1712810346166,1372.10854233,0.00018033,2]
[322120715,1712810346465,941.51185046,0.00018033,2]
[322120716,1712810347309,287.94852991,0.00018033,2]
[322120717,1712810349570,952.22659535,0.00017131,2]
[322120718,1712810350023,11093.32144089,0.00018033,2]